Cogmind - Beta 15 @@@ ROGUE MODE // 2025.09.18 @ 23:20:43 Player: cottonman132 Result: Destroyed by S-10 Pest with Light Assault Rifle Performance ------------- Evolutions (0) 0 Regions Visited (2) 400 Robots Destroyed (21) 105 Value Destroyed (399) 399 Prototype IDs (2) 40 Alien Tech Used (0) 0 Bonus (0) 0 TOTAL SCORE: 944 Bonus ------- None Cogmind --------- Core Integrity 0/250 Matter 218/300 Energy 177/200 System Corruption 0% Temperature Cool (6) Movement Rolling (100) Location -10/Subcaves Parts ------- > --- POWER (1) -------- Subdweller Power Source > --- PROPULSION (2) --- Compact Wheel Compact Wheel > --- UTILITY (2) ------ Medium Storage Unit Targeting Computer > --- WEAPON (2) ------- Subdweller Laser Subdweller Beam Cannon > --- INVENTORY (10) --- Ion Engine Light Ion Engine High-capacity Storage Unit Sensor Array Improved Terrain Scanner Seismic Detector Peak State ------------ > --- POWER ------------ Subdweller Power Source > --- PROPULSION ------- Compact Wheel Compact Wheel > --- UTILITY ---------- Medium Storage Unit Targeting Computer > --- WEAPON ----------- Subdweller Laser Subdweller Beam Cannon > --- INVENTORY -------- Ion Engine High-capacity Storage Unit Sensor Array Improved Terrain Scanner Seismic Detector [Rating: 10] Favorites ----------- Power Light Ion Engine Engine Light Ion Engine Propulsion Compact Wheel Treads Light Treads Wheel Compact Wheel Utility Small Storage Unit Device Seismic Detector Storage Small Storage Unit Processor Targeting Computer Protection Light Armor Plating Weapon Assault Rifle Energy Gun Subdweller Laser Energy Cannon Subdweller Beam Cannon Ballistic Gun Assault Rifle Special Weapon Mining Laser Build | -11 -10 -10 ------- Run | Yrd Mat Sub Slots Evolved . | . . . Power . | . . . Propulsion . | . . . Utility . | . . . Weapon . | . . . Parts Attached 18 | 7 6 5 Power 3 | 1 1 1 Engine 3 | 1 1 1 Core . | . . . Reactor . | . . . Propulsion 5 | 2 3 . Treads 2 | . 2 . Leg . | . . . Wheel 3 | 2 1 . Hover . | . . . Flight . | . . . Utility 5 | 2 2 1 Device 1 | 1 . . Storage 2 | 1 1 . Processor 1 | . . 1 Hackware . | . . . Protection 1 | . 1 . Artifact . | . . . Weapon 5 | 2 . 3 Energy Gun 1 | . . 1 Energy Cannon 1 | . . 1 Ballistic Gun 2 | 2 . . Ballistic Cannon . | . . . Launcher . | . . . Special Weapon 1 | . . 1 Impact Weapon . | . . . Slashing Weapon . | . . . Piercing Weapon . | . . . Special Melee Weapon . | . . . Unidentified Prototypes . | . . . Parts Lost 6 | . 1 5 Power . | . . . Propulsion 2 | . 1 1 Utility 1 | . . 1 Weapon 3 | . . 3 Highest Loss Streak 4 | . 1 4 To Critical Strikes . | . . . Average Backups 7 | 3 7 7 Power . | . . 1 Propulsion 2 | 1 2 1 Utility 3 | . 3 4 Weapon . | . 1 . Tool/Special . | . . . Unused Backups 6 | . 1 5 Power 2 | . . 2 Propulsion . | . . . Utility 3 | . . 3 Weapon 1 | . 1 . Tool/Special . | . . . Average Slot Usage (%) 97 | . 99 89 Engine 14 | . 14 14 Treads 6 | . 3 17 Wheel 20 | . 24 9 Device 5 | . 7 . Storage 14 | . 14 14 Processor 2 | . . 9 Protection 6 | . 7 4 Energy Cannon 1 | . . 5 Ballistic Gun 22 | . 27 7 Special Weapon 1 | . . 4 Peak Build Rating 10 | 7 8 10 Average Rating 7 | 4 7 7 On Entrance 5 | . 7 8 Naked Turns . | . . . Heaviest Build 27 | 14 19 27 Greatest Support 40 | 26 40 40 Greatest Overweight (x) 2 | 2 . 1 Average Overweight (x) . | . . . Largest Inventory Capacity 10 | 8 10 10 Average Capacity 8 | 7 8 10 Most Carried 10 | 7 10 9 Average Carried 7 | 3 7 7 Final Capacity 10 | 8 10 10 Final Carried 9 | 6 9 6 Class Distribution -------------------- 95% | Mutant 4% | Scavenger-Mutant Dominant Class ---------------- Mutant | -10/Materials Mutant | -10/Subcaves Resources | -11 -10 -10 ----------- Run | Yrd Mat Sub Matter Collected 634 | 302 175 157 Remotely . | . . . Salvage Created 716 | 138 488 90 Parts 51 | 9 37 5 Haulers Intercepted 2 | . 2 . Recyclers Shooed . | . . . Parts Field Recycled . | . . . Retrieved Matter . | . . . Parts Self-Destructed . | . . . Prevented . | . . . Kills | -11 -10 -10 ------- Run | Yrd Mat Sub Combat Hostiles Destroyed 10 | . 8 2 Guns 8 | . 8 . Cannons 1 | . . 1 Classes Destroyed 9 | 2 6 1 Worker 1 | . 1 . Tunneler 3 | 3 . . Hauler 2 | . 2 . Recycler 1 | 1 . . Mechanic 1 | . 1 . Watcher 3 | . 3 . Swarmer 3 | . 3 . Grunt 5 | . 5 . Subdweller 2 | . . 2 Best Kill Streak 7 | 4 7 1 Combat Bots Only 3 | . 3 1 Max Kills in Single Turn 2 | 1 2 1 Gunslinging 1 | . 1 . Exploded . | . . . Melee . | . . . Uniques/NPCs Destroyed . | . . . Combat | -11 -10 -10 -------- Run | Yrd Mat Sub Hostile Shots Fired 92 | . 45 47 Missed 19 | . 11 8 Hits 73 | . 34 39 Projectile 73 | . 34 39 Damage Taken 1155 | . 396 759 Core 259 | . 132 127 Absorbed by Shields . | . . . Regen/Repaired (Parts) 69 | . 69 . Core Remaining (%) 100 | 100 . . Volleys Fired 82 | 8 43 31 Largest 2 | 2 2 2 Hottest 140 | 40 40 140 Shots Fired 134 | 16 86 32 Gun 123 | 16 86 21 Cannon 8 | . . 8 Launcher . | . . . Special 3 | . . 3 Kinetic 122 | 16 86 20 Thermal 12 | . . 12 Explosive . | . . . Electromagnetic . | . . . Robot Hit Streak 9 | 3 7 9 Robot Miss Streak 3 | 3 2 1 Penetration Max . | . . . Secondary Targets 4 | . 4 . Max Gunslinging Chain 1 | . 1 . Shots Hit Robots 88 | 7 56 25 Core Hits 35 | 6 27 2 Critical Kills 1 | . . 1 Critical Parts Destroyed . | . . . Critical Strikes 1 | . . 1 Meltdown 1 | . . 1 Melee Attacks . | . . . Impact . | . . . Slashing . | . . . Piercing . | . . . Sneak Attacks . | . . . Combat Hostiles . | . . . Follow-up Attacks . | . . . Damage Inflicted 1096 | 87 609 400 Guns 901 | 87 609 205 Cannons 195 | . . 195 Explosions . | . . . Melee . | . . . Ramming . | . . . Kinetic 878 | 87 609 182 Thermal 218 | . . 218 Explosive . | . . . Electromagnetic . | . . . Impact . | . . . Slashing . | . . . Piercing . | . . . Highest Corruption . | . . . Average Corruption . | . . . Corruption Purged . | . . . Corruption Blocked . | . . . Overload Shots . | . . . Overflow Damage . | . . . Projectiles . | . . . Explosions . | . . . Melee . | . . . Knockbacks . | . . . Impact . | . . . Kinetic . | . . . Secondary . | . . . Self-Inflicted Damage . | . . . Shots . | . . . Rammed . | . . . Targets Rammed . | . . . Kicked . | . . . Crushed . | . . . Highest Temperature 21 | . 21 18 Average Temperature 7 | . 6 11 Received Heat Transfer 390 | . 180 210 Siege Activations . | . . . Martial Activations . | . . . Shielding Activations . | . . . Robots Disrupted . | . . . Combat Hostiles . | . . . Robots Corrupted . | . . . Combat Hostiles . | . . . Parts Fried . | . . . Impact Corruptions . | . . . Robots Melted 1 | . . 1 Combat Hostiles 1 | . . 1 Parts Melted 2 | . . 2 Heat Transferred 284 | . . 284 Parts Sabotaged . | . . . Parts Stolen . | . . . Parts Stripped . | . . . Power Chain Reactions . | . . . Alert | -11 -10 -10 ------- Run | Yrd Mat Sub Maximum Alert Level . | . . . Low Security (%) 100 | 100 100 . Level 1 . | . . . Level 2 . | . . . Level 3 . | . . . Level 4 . | . . . Level 5 . | . . . High Security . | . . . Max Security . | . . . Peak Influence 137 | 10 137 . Initial . | . . . Average 48 | 1 53 . Influence Increases 315 | 20 295 . Destroy 0b10 Robot/C 160 | . 160 . Destroy 0b10 Robot/NC 55 | 20 35 . Destroy Leader 50 | . 50 . Successful Hack 20 | . 20 . Lose Combat Pursuer 30 | . 30 . Influence Decreases 315 | 20 295 . Time Decay 305 | 20 285 . Lost Part 10 | . 10 . Squads Dispatched 2 | . 2 . Investigation 1 | . 1 . Extermination . | . . . Reinforcement 1 | . 1 . Assault . | . . . Garrison . | . . . Intercept . | . . . Searches Triggered . | . . . Construction Impeded . | . . . Haulers Reinforced . | . . . Active Scanning Responses . | . . . Cargo Convoy Interrupts . | . . . Stealth | -11 -10 -10 --------- Run | Yrd Mat Sub Distress Signals 1 | . 1 . Communications Jammed . | . . . Distress Signals . | . . . Times Spotted 24 | . 18 6 Peak Tracking Total 4 | . 4 3 Tactical Retreats 2 | . 2 . Traps | -11 -10 -10 ------- Run | Yrd Mat Sub Traps Triggered . | . . . Indirectly . | . . . Trap Hack Attempts . | . . . Triggered . | . . . Disarmed . | . . . Reprogrammed . | . . . Reused . | . . . Traps Extracted . | . . . Installed . | . . . Triggered . | . . . Machines | -11 -10 -10 ---------- Run | Yrd Mat Sub Machines Disabled 1 | . 1 . Max in Single Turn 1 | . 1 . Machines Repaired . | . . . Machines Dismantled . | . . . Machines Sabotaged . | . . . Overloaded Fab Kills . | . . . Hacking | -11 -10 -10 --------- Run | Yrd Mat Sub Machines Accessed 6 | . 6 . Terminals 5 | . 5 . Fabricators . | . . . Repair Stations 1 | . 1 . Recycling Units . | . . . Scanalyzers . | . . . Garrison Access . | . . . Total Hacks 17 | . 17 . Successful 8 | . 8 . Failed 9 | . 9 . Catastrophic 1 | . 1 . Database Lockouts . | . . . Manual . | . . . Terminals 15 | . 15 . Fabricators . | . . . Repair Stations 2 | . 2 . Recycling Units . | . . . Scanalyzers . | . . . Garrison Access . | . . . Terminal Hacks 6 | . 6 . Prototype ID Bank 1 | . 1 . Locate Traps 1 | . 1 . Hauler Manifests 1 | . 1 . Zone Layout 3 | . 3 . Fabricator Hacks . | . . . Repair Station Hacks 2 | . 2 . Scan Component 1 | . 1 . Repair 1 | . 1 . Recycling Unit Hacks . | . . . Scanalyzer . | . . . Garrison Access Hacks . | . . . Unauthorized Hacks . | . . . Terminals . | . . . Fabricators . | . . . Repair Stations . | . . . Recycling Units . | . . . Scanalyzers . | . . . Garrison Access . | . . . Data Cores Recovered . | . . . Used . | . . . Hacking Detections 3 | . 3 . Full Trace Events 1 | . 1 . Feedback Events . | . . . Feedback Blocked . | . . . Robot Schematics Acquired . | . . . Robots Built . | . . . Authchips . | . . . Time . | . . . Total Robot Build Rating . | . . . Part Schematics Acquired . | . . . Parts Built . | . . . Authchips . | . . . Time . | . . . Total Part Build Rating . | . . . Parts Repaired 1 | . 1 . Time 26 | . 26 . Parts Recycled . | . . . Recycled Matter . | . . . Retrieved Matter . | . . . Retrieved Components . | . . . Parts Scanalyzed . | . . . Part Schematics Acquired . | . . . Parts Damaged . | . . . Bothacking | -11 -10 -10 ------------ Run | Yrd Mat Sub Used RIF Installer . | . . . Robots Hacked . | . . . Non-combat . | . . . Combat . | . . . Robot Hacks Applied . | . . . Relay Couplers Released . | . . . Fabnet Peak Effective % . | . . . Robots Rewired . | . . . Allies Hacked . | . . . Hacks Repelled . | . . . Allies | -11 -10 -10 -------- Run | Yrd Mat Sub Total Allies . | . . . Largest Group . | . . . Highest-Rated Group . | . . . Highest-Rated Ally . | . . . Total Orders . | . . . Ally Attacks . | . . . Total Damage . | . . . Kills . | . . . Allies Corrupted . | . . . Allies Melted . | . . . Intel | -11 -10 -10 ------- Run | Yrd Mat Sub Active Infowar (turns) 409 | 2 407 . Seismic 409 | 2 407 . Robot Analysis Total . | . . . Derelict Logs Recovered . | . . . Drone Launches . | . . . Drone Recoveries . | . . . Exploration | -11 -10 -10 ------------- Run | Yrd Mat Sub Turns Passed 1162 | 89 813 260 Spaces Moved 792 | 52 607 133 Core 14 | 14 . . Treads 99 | . 33 66 Legs . | . . . Wheels 679 | 38 574 67 Hover . | . . . Flight . | . . . Fastest Speed 50 | 50 90 100 Average Speed 104 | 90 99 132 Slowest Speed 240 | 150 160 240 Overloaded Moves . | . . . Propulsion Burnouts . | . . . Robots Hopped . | . . . Potential Cave-ins . | . . . Cave-ins Triggered . | . . . Exploration Rate (%) 32 | 3 83 10 Regions Visited 2 Branch Regions 1 Pre-discovered Areas . | . . . Known Exits Taken . | . . . Unknown Exits Taken 2 | 1 1 . Scrap Searched . | . . . Spaces Dug . | . . . Terrain Destroyed . | . . . Melee . | . . . Projectile . | . . . AOE . | . . . Terrain Rammed . | . . . Walls Destroyed . | . . . Machines Disabled . | . . . Actions | -11 -10 -10 --------- Run | Yrd Mat Sub Total 993 | 79 734 180 Wait 63 | . 63 . Move 790 | 51 606 133 Hop . | . . . Pick Up 23 | 13 6 4 Fast Attach 1 | . 1 . Attach 13 | 7 1 5 Detach . | . . . Swap 16 | . 11 5 Drop 5 | . 3 2 Fire 82 | 8 43 31 Melee . | . . . Ram . | . . . Kick . | . . . Crush . | . . . Escape Stasis . | . . . Rewire . | . . . Trap . | . . . Miscellaneous . | . . . Route ------- -11/Scrapyard -10/Materials (discovered 5 exits: [*Mat x2] / [*Min x2] / [*Sub]) -10/Subcaves History --------- Turn | Location | Event 10 | -11/Scrapyard | Discovered new exit (range 15) 90 | -11/Scrapyard | Entered Materials 286 | -10/Materials | Discovered new exit (range 5) 318 | -10/Materials | Build established: Mutant 513 | -10/Materials | Core integrity fell below 50% 600 | -10/Materials | Discovered new exit (range 15) 735 | -10/Materials | Repaired Assault Rifle 786 | -10/Materials | Discovered new exit (range 16) 816 | -10/Materials | Discovered new exit (range 16) 896 | -10/Materials | Discovered new exit (range 8) 903 | -10/Materials | Entered Subcaves 904 | -10/Subcaves | Approached by a straggling Scientist 1043 | -10/Subcaves | Lost 4 parts (1u3w) 1052 | -10/Subcaves | Shifting Twisted Machinery released Sub. Beam Cannon 1063 | -10/Subcaves | Core integrity fell below 20% 1163 | -10/Subcaves | Destroyed by S-10 Pest with Light Assault Rifle Last Messages --------------- 01061_ Acquired Sub. Beam Cannon. 01066_ Lgt. Treads destroyed. 01071_ Sub. Monowheel melted. 01071_ 7D-F6C(R) destroyed. 01080_ Acquired 31 matter. 01085_ Acquired Sub. Power Source. 01106_ Subatomizers dissect the Sub. Optics. 01107_ 07-0OR(R) suffers critical hit (Meltdown). 01107_ Sub. Power Source melted. 01112_ Acquired 59 matter. 01113_ Acquired 35 matter. 01115_ Acquired Sub. Laser. 01117_ Subatomizers dissect the Sub. Optics. 01118_ Dropped Lgt. Ion Engine. 01118_ Dropped Lgt. Treads. 01122_ Acquired Lgt. Ion Engine. 01124_ Tech Extrapolator violently self-destructs. 01129_ Subatomizers dissect the Sub. Optics. Map ----- +----------------------------------------------------+ | ??????? ??????????????????????????????????? | | ?????? ?????????????????????????????????? | | ?????? ??? ? ???????????????????????????? | | ??????? ?? ???????????????????????????? | | ??????? ??? ???????????????????????????? | | ???????? #?? ????????????????????????????? | | ???????? ??? #????????????????????????????? | | ???????? ??? ##???????????????????????????? | | ????????? ??? ????????????????????????????? | | ?????????# ???? #?????????????????????????????? | | ????####?# #?### ##????????????????????????????? | | ????# #?# ### #???????? ???????????????????? | | ????# #?# ## ##??????? #???????????????????? | | ????# ### #??????? ???????????????????? | | ?#?## # #???????? ##??????????????????? | | # # ####???????? ??##???????????????? | | " ###???????? ? ????????????????? | | # ## ## #???????? ## #????????????????? | | ?### ###### ##???????? #????????????????? | | ???## ####### ##???????? #?#??????????????? | | ????### ## # #??????? s # # #????????????? | | ??????### # ##??????? s ????????????? | | ???###### ## ##???????s ???????????????? | | #### ## ! # ######## #??????????????????? | | =*& ## # ## #??????????????????? | | &##### @ #??????????????????? | | # ###&& #???## ## # # ###??????????????????? | | " ##### ##????######### #????????????????????? | | ##??# #??????????????# #????????????????????? | | ##??## ##?????????????? ????????????????????? | | ##??# ####???????????? #???????????????????? | | "#?## #?????????????##???????????????????? | | "##?# #??????????????????????????????????? | | ##??# # ##??????????????????????????????????? | | ???# #### #?????????##???????????????????????? | | ???## ##??# ##???????? #???????????????????????? | | ????##????## #####??? #???????????????????????? | | ???????????#"" ### #???????????????????????? | | ???????????#"" # ??????????????????????????? | | ???????????#"####| #?????????????????????????????? | | ???????????###?## #?????????????????????????????? | | ????????????#### !##?????????????????????????????? | | ???????????##" ##????????????????????????????? | | ???????????#" #????????????????????????????? | | ???????????## ##????????????????????????????? | | ????????????# ####?????????????????????????????? | | ????????????## ##????????????????????????????????? | | ????????????? #?????????????????????????????????? | | ????????????# ?????????????????????????????????? | | ????????????## ?????????????????????????????????? | +----------------------------------------------------+ Best States ------------- Heat Dissipation 25 Energy Generation 15 Energy Capacity 250 Matter Stores 300 Matter Capacity 300 Sight Range 16 Terrain Scan Density 10 Armor Coverage 150 Evasion (%) 42 Targeting Accuracy 5 Recoil Reduction 2 Item Schematics ----------------- None Robot Schematics ------------------ None Fabricated ------------ Nothing Repaired ---------- Assault Rifle | 31% | -10/Materials Alien Tech Used ----------------- None Achievements -------------- None Challenges ------------ None Game ------ Seed ImpactGravitonRipteeth Manual? 0 Play Time 00:12:54 Cumulative 13.7 hours Start 2025.09.18 @ 23:10:06 End 2025.09.18 @ 23:20:43 Sessions 1 Manual Loads 0 Difficulty Rogue Special Mode None Game No. 43 Rogue 43 Adventurer 0 Explorer 0 Win Type - Total 0 Types 0/0/0/0/0/0/0/0/0/0 Lore% 24 Gallery% 15 Achievement% 17 Wizard Run 0 Options --------- Layout 2 ASCII 0 Keyboard 0 Movement Mouse Keybinds 0 Fullscreen 1 Font 24/Smallcaps Map View 50x44 Zoom Use 0% Tactical HUD 1 Map Filters NONE Filters NONE Steam 1 RUN: de56ad32-5237-4703-8cfc-82a6c3664a8c